bitfinex-derivatives/quotes_SOLF0:USTF0_20250803
["timestamp","ask_amount","ask_price","bid_price","bid_amount"]
[1754235940502,3.25,162.13,162.04,12.71163794]
[1754235941096,6.1694,162.1,162.04,12.71163794]
[1754235941303,3.25,162.09,162.04,12.71163794]
[1754235941494,3.25,162.09,162.05,6.1707]
[1754235942010,9.4199,162.09,162.04,18.88303794]
[1754235942210,3.25,162.08,162.04,16.10303794]
[1754235942703,3.25,162.08,162.03,117.56]
[1754235943305,3.25,162.08,162.03,120.34]
[1754235944505,3.25,162.08,162.03,126.5117]
[1754235945107,3.29,162.09,162.03,117.56]
[1754235945408,3.29,162.08,162.05,2.81]
[1754235946508,3.29,162.15,162.05,2.81]
[1754235946905,6.168,162.14,162.08,6.1698]
[1754235947104,3.29,162.15,162.08,6.1698]
[1754235948107,3.29,162.15,162.09,6.1694]
[1754235948310,3.29,162.15,162.08,2.81]
[1754235948506,3.29,162.15,162.1,9.93163794]
[1754235948715,3.29,162.15,162.12,8.9783]
[1754235948908,6.1668,162.17,162.12,8.9783]
[1754235949211,3.29,162.14,162.12,8.9783]
[1754235949412,3.29,162.14,162.12,2.81]
[1754235949906,6.1658,162.19,162.13,16.09963794]
[1754235950105,3.29,162.23,162.13,117.12]
[1754235951216,3.29,162.23,162.13,123.288]
[1754235951411,3.29,162.23,162.13,133.21963794]
[1754235951811,6.1664,162.18,162.13,133.21963794]
[1754235952014,3.29,162.16,162.13,136.02963794]
[1754235952214,6.1664,162.18,162.14,2.81]
[1754235952407,9.4564,162.18,162.15,2.81]
[1754235952604,3.29,162.18,162.16,12.74163794]
[1754235954811,3.29,162.17,162.16,12.74163794]
[1754235955005,3.29,162.17,162.16,9.93163794]
[1754235957612,3.29,162.17,162.13,127.05163794]
[1754235957815,3.29,162.17,162.15,2.81]
[1754235958618,3.29,162.22,162.16,9.93163794]
[1754235958818,3.29,162.22,162.16,12.74163794]
[1754235959812,3.29,162.22,162.14,8.9776]
[1754235960013,3.29,162.22,162.14,125.7176]
[1754235960412,6.166,162.19,162.14,125.7176]
[1754235960608,3.29,162.18,162.14,125.7176]
[1754235961815,6.166,162.19,162.14,125.7176]
[1754235962018,3.29,162.16,162.14,125.7176]
[1754235962217,3.29,162.17,162.14,116.74]
[1754235962514,3.29,162.17,162.14,119.55]
[1754235962716,3.29,162.16,162.14,125.76015505]
[1754235963020,3.29,162.17,162.14,122.95015505]
[1754235963213,6.1658,162.19,162.14,129.11775505]
[1754235963519,13.13367785,162.3,162.16,6.21015505]
[1754235963520,3.29,162.24,162.16,6.21015505]
[1754235964715,3.29,162.19,162.16,9.02015505]
[1754235964920,3.29,162.18,162.16,9.02015505]
[1754235966114,3.29,162.18,162.17,2.81]
[1754235967310,3.29,162.19,162.17,2.81]
[1754235968620,6.1654,162.2,162.17,2.81]
[1754235968916,3.29,162.23,162.15,9.02015505]
[1754235969123,3.29,162.23,162.15,6.21015505]
[1754235969415,6.166,162.19,162.15,6.21015505]
[1754235969623,3.29,162.23,162.15,6.21015505]
[1754235970115,6.1659,162.19,162.15,6.21015505]
[1754235970322,3.29,162.18,162.15,6.21015505]
[1754235970624,3.29,162.18,162.15,9.02015505]
[1754235971017,6.1659,162.19,162.15,9.02015505]
[1754235971217,3.29,162.17,162.15,9.02015505]
[1754235971416,3.29,162.17,162.15,15.18735505]
[1754235972925,3.29,162.23,162.15,15.18735505]
[1754235973225,3.29,162.23,162.15,6.21015505]
[1754235974431,3.32,162.17,162.15,9.01015505]
[1754235975521,6.21015505,162.2,162.1,417.26]
[1754235975723,3.32,162.19,162.1,6.21015505]
[1754235976029,3.32,162.16,162.1,9.01015505]
[1754235976229,3.32,162.16,162.11,8.9685]
[1754235976428,3.32,162.16,162.12,2.8]
[1754235976632,6.21015505,162.2,162.12,2.8]
[1754235976827,3.32,162.19,162.1,9.01015505]
[1754235977023,3.32,162.19,162.1,15.17915505]
[1754235977024,6.1679,162.14,162.1,15.17915505]
[1754235977224,6.21015505,162.18,162.1,6.21015505]
[1754235977423,3.32,162.17,162.1,9.01015505]
[1754235977634,3.32,162.16,162.14,6.21015505]
[1754235977826,3.32,162.16,162.15,2.8]
[1754235978530,3.32,162.16,162.14,15.17755505]
[1754235980232,3.32,162.16,162.12,15.17815505]
[1754235981227,3.32,162.15,162.12,15.17815505]
[1754235981424,3.32,162.2,162.1,9.01015505]
[1754235981927,6.1675,162.15,162.11,6.1687]
[1754235982127,6.1675,162.15,162.11,8.9687]
[1754235982327,3.32,162.13,162.11,8.9687]
[1754235982724,3.32,162.15,162.13,2.8]
[1754235983337,3.32,162.15,162.14,2.8]
[1754235985130,3.32,162.14,162.13,2.8]
[1754235986635,3.32,162.14,162.12,12.37845505]
[1754235986834,3.32,162.13,162.1,6.21015505]
[1754235987140,3.32,162.13,162.1,9.01015505]
[1754235987840,6.21015505,162.17,162.09,116.28]
[1754235988137,3.32,162.14,162.06,122.23015505]
[1754235988539,6.1698,162.09,162.06,122.23015505]
[1754235988739,3.32,162.08,162.06,116.02]
[1754235988936,6.21015505,162.13,162.06,116.02]
[1754235988937,6.1694,162.1,162.06,124.9904]
[1754235989137,3.32,162.09,162.07,2.8]
[1754235989338,6.21015505,162.13,162.07,2.8]
[1754235989339,3.32,162.08,162.07,2.8]
[1754235989538,6.21015505,162.13,162.06,116.02]
[1754235989743,3.32,162.07,162.06,116.02]
[1754235991137,3.32,162.07,162.06,118.82]
[1754235991440,3.32,162.07,162.06,116.02]
[1754235994044,9.4903,162.07,162.06,116.02]
[1754235994834,3.32,162.07,162.06,116.02]
[1754235995034,3.32,162.07,162.06,118.82]
[1754235995439,3.32,162.13,162.06,118.82]
[1754235995749,3.32,162.13,162.06,116.02]
[1754235995948,3.32,162.13,162.07,2.8]
[1754235996844,6.21015505,162.15,162.06,116.02]
[1754235997041,3.32,162.09,162.06,118.82]
[1754235997456,6.1696,162.09,162.06,118.82]
[1754235997647,3.32,162.08,162.06,118.82]
[1754235997952,3.32,162.08,162.06,124.9906]
[1754235998149,6.1692,162.1,162.07,2.8]
[1754235998454,3.32,162.09,162.07,2.8]
[1754235999255,13.13367785,162.2,162.08,2.8]
[1754235999256,6.1689,162.11,162.08,2.8]
[1754235999456,9.4889,162.11,162.09,2.8]
[1754235999657,3.32,162.11,162.09,9.01015505]
[1754235999857,3.32,162.15,162.07,9.01015505]
[1754236000058,3.32,162.15,162.08,2.8]
[1754236000862,6.1687,162.12,162.08,2.8]
[1754236001262,3.32,162.1,162.07,6.21015505]
[1754236001465,9.4887,162.12,162.08,6.1696]
[1754236001764,19.2529228,162.22,162.12,2.8]
[1754236001765,3.32,162.22,162.12,2.8]
[1754236001955,359.9235228,162.24,162.12,8.9683]
[1754236001956,3.32,162.2,162.12,8.9683]
[1754236002157,6.167,162.16,162.12,8.9683]
[1754236002357,6.167,162.16,162.13,2.8]
[1754236002557,3.32,162.14,162.13,2.8]
[1754236003162,6.9235228,162.25,162.13,6.21015505]
[1754236003353,3.32,162.23,162.16,6.21015505]
[1754236003557,3.32,162.23,162.16,9.01015505]
[1754236003866,6.21015505,162.26,162.17,2.81]
[1754236003867,3.28,162.19,162.17,2.81]
[1754236005465,9.446,162.19,162.17,2.81]
[1754236005663,3.28,162.19,162.15,6.21015505]
[1754236005861,3.28,162.19,162.1,6.21015505]
[1754236006068,3.28,162.19,162.1,9.02015505]
[1754236006364,6.1675,162.15,162.11,6.1687]
[1754236006561,3.28,162.14,162.12,2.81]
[1754236008368,6.1675,162.15,162.12,9.02015505]
[1754236008571,9.4475,162.15,162.13,2.81]
[1754236008968,6.167,162.16,162.12,12.37845505]
[1754236009164,3.28,162.15,162.13,2.81]
[1754236009475,3.28,162.15,162.14,2.81]
[1754236009768,6.21015505,162.21,162.14,2.81]
[1754236009968,6.1662,162.18,162.14,2.81]
[1754236010162,3.28,162.16,162.14,2.81]
[1754236011072,6.21015505,162.19,162.1,9.02015505]
[1754236011363,3.28,162.16,162.1,2.81]
[1754236012164,6.1677,162.14,162.1,8.9791]
[1754236012466,3.28,162.13,162.09,2.81]
[1754236013069,3.28,162.13,162.08,122.13015505]
[1754236013266,3.28,162.13,162.08,115.92]
[1754236013471,6.1687,162.12,162.08,124.8999]
[1754236013672,3.28,162.1,162.08,118.73]
[1754236013875,6.21015505,162.15,162.08,118.73]
[1754236014068,3.28,162.14,162.08,118.73]
[1754236014370,3.28,162.1,162.08,118.73]
[1754236014764,3.28,162.09,162.08,118.73]
[1754236016072,10.20696595,162.22,162.09,2.81]
[1754236016073,3.28,162.18,162.09,2.81]
[1754236016468,6.1679,162.14,162.09,2.81]
[1754236016668,3.28,162.13,162.09,2.81]
[1754236016868,6.21015505,162.19,162.08,122.13015505]
[1754236017069,3.28,162.12,162.1,2.81]
[1754236017269,3.28,162.12,162.11,6.1688]
[1754236018068,3.28,162.12,162.1,8.9791]
[1754236018268,3.28,162.11,162.1,8.9791]
[1754236018482,3.28,162.1,162.09,8.9794]
[1754236018973,3.28,162.14,162.08,115.92]
[1754236019169,3.28,162.11,162.08,118.73]
[1754236019367,6.1686,162.12,162.08,118.73]
[1754236019368,3.28,162.1,162.08,118.73]
[1754236020677,3.28,162.1,162.08,115.92]
[1754236020978,3.28,162.12,162.09,2.81]
[1754236021175,3.28,162.11,162.09,2.81]
[1754236021477,3.28,162.11,162.09,8.9793]
[1754236022277,6.1684,162.12,162.09,8.9793]
[1754236022473,6.1684,162.12,162.08,122.0898]
[1754236022678,3.28,162.09,162.08,122.0898]
[1754236024479,3.28,162.09,162.08,115.92]
[1754236024680,3.28,162.09,162.06,6.1704]
[1754236025476,3.28,162.09,162.05,121.7709]
[1754236025877,6.1696,162.09,162.05,115.6]
[1754236026077,3.28,162.08,162.05,115.6]
[1754236026376,6.21015505,162.13,162.05,118.41]
[1754236026377,3.28,162.07,162.05,118.41]
[1754236026577,3.28,162.06,162.05,118.41]
[1754236026775,3.28,162.07,162.06,8.9807]
[1754236027573,6.9235228,162.18,162.07,6.1701]
[1754236027775,3.28,162.09,162.07,8.9801]
[1754236027975,3.28,162.12,162.08,2.81]
[1754236028275,6.21015505,162.17,162.05,115.6]
[1754236028276,3.28,162.11,162.1,2.81]
[1754236028784,3.28,162.11,162.09,121.7694]
[1754236029087,3.28,162.1,162.09,124.5794]
[1754236029384,3.28,162.16,162.09,118.41]
[1754236029581,3.28,162.16,162.1,2.81]
[1754236030179,3.28,162.18,162.12,2.81]
[1754236030378,6.1666,162.17,162.13,8.9779]
[1754236030687,3.28,162.15,162.13,6.1679]
[1754236030878,3.28,162.15,162.12,8.9783]
[1754236031082,3.28,162.14,162.12,8.9783]
[1754236031974,3.28,162.14,162.13,8.978]
[1754236032177,6.9235228,162.23,162.11,6.21015505]
[1754236032373,3.28,162.22,162.14,9.02015505]
[1754236033184,6.1658,162.19,162.16,6.1668]
[1754236033380,6.1658,162.19,162.14,6.21015505]
[1754236033381,3.28,162.17,162.14,6.21015505]
[1754236033581,3.28,162.17,162.15,2.81]
[1754236034086,6.1658,162.19,162.15,6.167]
[1754236034286,3.26,162.16,162.13,115.6]
[1754236034784,3.26,162.14,162.13,115.6]
[1754236035189,3.26,162.14,162.1,6.21015505]
[1754236035781,3.26,162.13,162.09,115.6]
[1754236035986,3.26,162.13,162.09,118.4]
[1754236036282,6.21015505,162.18,162.09,115.6]
[1754236036485,3.26,162.17,162.1,9.01015505]
[1754236037686,6.1676,162.15,162.11,6.1686]
[1754236037888,3.26,162.13,162.11,8.9686]
[1754236040992,6.1674,162.15,162.11,2.8]
[1754236041285,3.26,162.14,162.1,15.17925505]
[1754236042092,3.26,162.14,162.11,6.1688]
[1754236042288,3.26,162.14,162.11,8.9688]
[1754236046281,3.26,162.14,162.12,6.1684]
[1754236046793,3.26,162.14,162.11,8.9686]
[1754236049193,3.26,162.14,162.12,6.1683]
[1754236053296,3.26,162.14,162.11,8.9687]
[1754236055492,3.26,162.14,162.1,6.21015505]
[1754236055493,3.26,162.14,162.1,15.17925505]
[1754236058303,3.26,162.13,162.09,115.6]
[1754236058595,3.26,162.13,162.09,118.4]
[1754236059396,3.26,162.13,162.09,2.8]
[1754236060294,6.168,162.13,162.09,8.9693]
[1754236060605,3.26,162.12,162.09,8.9693]
[1754236067303,3.26,162.12,162.1,6.1691]
[1754236068503,3.26,162.12,162.09,8.9694]
[1754236069099,3.49,162.11,162.07,115.54]
[1754236069702,3.49,162.1,162.07,121.7101]
[1754236070004,3.49,162.1,162.07,124.5101]
[1754236070801,3.49,162.1,162.08,6.1698]
[1754236071308,3.49,162.12,162.08,2.8]
[1754236071609,3.49,162.12,162.09,2.8]
[1754236072105,3.49,162.12,162.09,8.9695]
[1754236074509,3.49,162.12,162.09,2.8]
[1754236075007,3.49,162.12,162.08,8.9696]
[1754236075807,3.49,162.11,162.08,8.9696]
[1754236076312,9.6588,162.11,162.08,8.9696]
[1754236076509,3.49,162.1,162.07,121.7102]
[1754236077112,3.49,162.1,162.08,6.1699]
[1754236078914,3.49,162.1,162.07,124.5102]
[1754236081512,9.6592,162.1,162.07,118.34]
[1754236081702,6.9235228,162.16,162.07,118.34]
[1754236081703,3.49,162.09,162.07,115.54]
[1754236083513,3.49,162.09,162.06,8.9703]
[1754236083710,3.49,162.09,162.07,6.1703]
[1754236083915,6.21015505,162.14,162.08,2.8]
[1754236084116,3.49,162.13,162.08,2.8]
[1754236084316,3.49,162.12,162.09,2.8]
[1754236085112,3.49,162.11,162.09,2.8]
[1754236085514,3.49,162.13,162.1,6.1691]
[1754236085724,3.49,162.13,162.11,2.8]
[1754236086107,3.49,162.13,162.1,2.8]
[1754236086816,3.49,162.12,162.09,8.9694]
[1754236088818,3.49,162.11,162.08,6.1698]
[1754236089116,3.49,162.11,162.08,2.8]
[1754236091121,6.1688,162.11,162.08,2.8]
[1754236091416,3.49,162.1,162.08,2.8]
[1754236092819,3.49,162.09,162.08,2.8]
[1754236094419,3.49,162.09,162.07,121.6303]
[1754236094615,3.45,162.08,162.07,124.4303]
[1754236095314,3.45,162.08,162.07,118.26]
[1754236095523,3.45,162.08,162.07,115.46]
[1754236096124,3.45,162.08,162.05,2.8]
[1754236097026,3.45,162.07,162.05,2.8]
[1754236097320,3.45,162.06,162.04,115.42]
[1754236099124,9.6207,162.06,162.04,115.42]
[1754236099322,6.1707,162.06,162.04,115.42]
[1754236099627,3.45,162.05,162.04,115.42]
[1754236100121,3.45,162.05,162.02,8.9721]
[1754236100122,9.6213,162.05,162.02,2.8]
[1754236100318,3.45,162.05,162.01,118.2]
[1754236100531,3.45,162.05,162.02,2.8]
[1754236102034,3.45,162.05,162.03,2.8]
[1754236102332,3.45,162.06,162.04,2.8]
[1754236103236,3.45,162.06,162.03,2.8]
[1754236103429,3.45,162.05,162.01,118.2]
[1754236103732,3.45,162.05,161.98,414.54]
[1754236103937,3.45,161.99,161.96,2.8]
[1754236104635,3.45,161.99,161.95,118.18]
[1754236104937,6.21015505,161.98,161.91,2.8]
[1754236105133,9.6244,161.97,161.9,121.5565]
[1754236105338,3.45,161.97,161.9,124.3565]
[1754236105531,3.45,161.97,161.9,118.18]
[1754236106034,3.45,161.96,161.91,2.8]
[1754236106335,6.9235228,162.03,161.95,6.1748]
[1754236106336,6.1727,162.01,161.95,6.1748]
[1754236106541,3.45,162.0,161.96,2.8]
[1754236106837,3.45,162.0,161.97,2.8]
[1754236107133,414.62,162.06,161.95,115.38]
[1754236107134,3.45,162.01,161.98,2.8]
[1754236107339,3.45,162.0,161.99,2.8]
[1754236107838,3.45,162.02,161.99,2.8]
[1754236108042,3.45,162.05,161.99,121.61015505]
[1754236108338,3.45,162.05,162.0,2.8]
[1754236108537,3.45,162.05,162.01,2.8]
[1754236108739,9.6211,162.05,162.01,2.8]
[1754236108943,3.45,162.04,162.01,2.8]
[1754236109346,3.45,162.03,162.02,2.8]
[1754236111541,6.21015505,162.09,162.02,2.8]
[1754236111736,3.45,162.08,162.0,2.8]
[1754236112040,6.1714,162.05,162.0,6.1726]
[1754236112244,3.45,162.04,162.01,2.8]
[1754236112540,3.45,162.04,162.0,8.9726]
[1754236112938,3.45,162.04,162.01,2.8]
[1754236114943,6.1715,162.04,161.99,121.5732]
[1754236115147,3.45,162.03,161.99,124.3732]
[1754236115339,3.45,162.03,161.99,118.2]
[1754236115538,3.45,162.01,161.99,115.4]
[1754236116245,3.45,162.0,161.99,118.2]
[1754236118443,3.45,162.0,161.99,124.3733]
[1754236118641,3.45,162.0,161.99,118.2]
[1754236119442,3.45,162.0,161.99,124.3733]
[1754236119642,3.45,162.0,161.99,118.2]
[1754236121243,3.45,162.0,161.99,124.3733]
[1754236121846,3.45,162.0,161.99,124.3133]
[1754236122746,3.45,162.0,161.99,8.9733]
[1754236122951,3.45,162.0,161.99,124.3133]
[1754236123452,3.45,162.0,161.99,8.9733]
[1754236123653,3.45,162.0,161.99,124.3133]
[1754236125955,3.45,162.0,161.99,8.9733]
[1754236126254,3.45,162.0,161.99,124.3133]
[1754236126950,3.45,162.0,161.99,8.9733]
[1754236127353,3.45,162.0,161.99,124.2933]
[1754236127856,3.45,162.0,161.99,118.12]
[1754236128058,3.45,162.0,161.99,2.8]
[1754236128254,3.45,162.0,161.99,118.12]
[1754236129059,3.45,162.0,161.99,2.8]
[1754236129259,3.45,162.0,161.99,118.12]
[1754236129656,3.45,162.0,161.99,2.8]
[1754236129957,3.45,162.0,161.99,118.1]
[1754236130158,3.45,162.0,161.99,8.9733]
[1754236130357,3.45,162.0,161.99,124.2733]
[1754236130661,3.45,162.0,161.99,8.9733]
[1754236130957,3.45,162.0,161.99,124.2733]
[1754236131150,3.45,162.0,161.99,8.9733]
[1754236131355,3.45,162.0,161.99,124.2733]
[1754236133061,3.45,162.0,161.99,124.2533]
[1754236134159,3.45,162.0,161.99,121.4533]
[1754236138857,3.45,162.0,161.99,115.28]
[1754236139760,3.45,162.0,161.96,2.8]
[1754236139964,3.45,162.0,161.97,115.26]
[1754236140165,3.45,162.0,161.95,2.82]
[1754236140364,3.45,162.0,161.96,115.26]
[1754236141065,9.623,162.0,161.95,8.9947]
[1754236141365,3.28,161.99,161.96,115.24]
[1754236142766,3.28,161.99,161.96,121.4145]
[1754236142964,3.28,162.02,161.97,2.82]
[1754236143266,3.28,162.05,162.01,6.1723]
[1754236143564,3.28,162.08,162.03,6.21015505]
[1754236143870,3.28,162.07,162.05,6.1708]
[1754236144064,3.28,162.07,162.06,2.82]
[1754236144263,6.1695,162.1,162.05,6.1708]
[1754236144469,3.28,162.06,162.05,8.9908]
[1754236144860,3.28,162.06,162.05,2.82]
[1754236145368,3.28,162.06,162.04,121.4113]
[1754236145567,6.21015505,162.09,162.03,6.1718]
[1754236145772,3.28,162.04,162.03,8.9918]
[1754236146065,3.28,162.04,162.03,124.2118]
[1754236146964,6.1702,162.08,162.03,121.3918]
[1754236147267,3.28,162.05,162.04,8.9914]
[1754236148864,3.28,162.05,162.04,2.82]
[1754236149271,6.21015505,162.11,162.04,2.82]
[1754236149569,3.28,162.08,162.05,2.82]
[1754236150169,3.28,162.07,162.06,2.82]
[1754236150662,3.28,162.07,162.06,8.9907]
[1754236150865,3.28,162.07,162.06,2.82]
[1754236151172,3.28,162.08,162.05,2.82]
[1754236152072,3.28,162.08,162.04,8.9914]
[1754236152871,3.28,162.07,162.02,2.82]
[1754236153070,3.28,162.07,162.02,115.16]
[1754236153676,3.41,162.05,162.02,115.16]
[1754236154363,6.171,162.06,162.02,115.16]
[1754236154567,3.41,162.05,162.02,124.1321]
[1754236155773,3.41,162.05,162.02,117.96]
[1754236157077,3.41,162.05,162.02,115.16]
[1754236158181,3.41,162.03,161.96,2.8]
[1754236158368,3.41,162.03,161.93,427.76748275]
[1754236158369,3.41,162.0,161.93,422.60642541]
[1754236158573,3.41,161.98,161.94,115.12]
[1754236158873,3.41,161.98,161.95,2.8]
[1754236159284,3.41,161.98,161.95,8.9748]
[1754236159579,3.41,161.98,161.94,115.12]
[1754236159779,3.41,161.98,161.94,117.92]
[1754236159979,3.41,161.98,161.95,2.8]
[1754236160582,3.41,161.99,161.96,2.8]
[1754236162285,3.41,161.99,161.96,8.9744]
[1754236162475,3.41,161.98,161.94,115.14]
[1754236162675,3.41,161.98,161.94,117.94]
[1754236163280,9.5839,161.98,161.94,124.1149]
[1754236163781,6.1743,161.97,161.94,115.14]
[1754236163978,3.41,161.95,161.91,115.12]
[1754236164879,3.41,161.95,161.91,121.2961]
[1754236165481,9.5851,161.95,161.91,115.12]
[1754236165682,3.41,161.94,161.91,115.12]
[1754236165878,6.21015505,161.94,161.88,2.8]
[1754236166078,9.5857,161.93,161.89,121.2971]
[1754236166278,6.1757,161.93,161.89,121.2971]
[1754236166471,3.41,161.92,161.89,121.2971]
[1754236166882,3.41,161.92,161.89,124.0971]
[1754236167284,3.41,161.93,161.89,115.12]
[1754236167480,3.41,161.93,161.9,2.8]
[1754236167987,3.41,161.93,161.84,422.06328517]
[1754236167988,3.41,161.91,161.86,115.12]
[1754236168282,6.9235228,161.99,161.86,117.92]
[1754236168283,3.41,161.88,161.86,117.92]
[1754236168689,3.41,161.88,161.86,124.098]
[1754236168889,3.41,161.88,161.86,115.12]
[1754236169087,3.41,161.88,161.87,2.8]
[1754236169286,6.21015505,161.9,161.86,115.12]
[1754236169591,3.41,161.91,161.87,2.8]
[1754236169988,3.41,161.91,161.89,2.8]
[1754236170690,3.41,161.9,161.89,2.8]
[1754236170991,3.41,161.92,161.9,2.8]
[1754236171385,3.41,161.93,161.9,2.8]
[1754236171893,3.41,161.93,161.89,121.3171]
[1754236172090,3.41,161.93,161.89,124.1171]
[1754236172590,3.41,161.93,161.89,121.3171]
[1754236172793,3.41,161.93,161.9,2.8]
[1754236173295,3.41,161.93,161.91,2.8]
[1754236173499,3.41,161.95,161.9,2.8]
[1754236173701,3.41,161.95,161.91,2.8]
[1754236174493,6.1753,161.94,161.89,121.317]
[1754236174698,3.41,161.93,161.89,124.117]
[1754236175398,3.41,161.93,161.89,121.317]
[1754236175698,3.41,161.93,161.9,8.9768]
[1754236176004,3.41,161.93,161.9,2.8]
[1754236176204,3.41,161.95,161.92,2.8]
[1754236176503,3.41,161.96,161.94,2.8]
[1754236176903,26.80753985,161.99,161.93,115.12]
[1754236176904,3.41,161.97,161.95,2.8]
[1754236177104,3.41,161.96,161.95,2.8]
[1754236177498,3.41,161.98,161.95,2.8]
[1754236177901,6.21015505,162.01,161.95,2.8]
[1754236177902,3.41,161.97,161.95,2.8]
[1754236178194,3.41,161.97,161.94,2.8]
[1754236180202,6.1738,161.98,161.94,8.9752]
[1754236180505,6.1738,161.98,161.94,2.8]
[1754236180705,3.41,161.97,161.94,2.8]
[1754236181210,3.41,161.97,161.93,121.2953]
[1754236181405,3.41,161.97,161.93,124.0953]
[1754236182106,6.1742,161.97,161.94,2.8]
[1754236182309,3.41,161.95,161.94,2.8]
[1754236182711,3.41,161.95,161.94,8.9752]
[1754236182903,3.41,162.0,161.94,2.8]
[1754236183407,6.1734,161.99,161.95,6.1746]
[1754236183597,3.26,162.02,161.97,6.21015505]
[1754236183803,6.21015505,162.06,161.98,2.8]
[1754236184105,3.26,162.01,161.99,2.8]
[1754236184600,3.26,162.01,161.98,2.8]
[1754236184800,3.26,162.01,161.97,115.08]
[1754236186409,6.21015505,162.04,161.97,115.08]
[1754236186410,3.26,161.99,161.97,115.08]
[1754236186603,3.26,161.98,161.97,115.08]
[1754236186804,3.26,161.98,161.97,117.88]
[1754236187505,6.21015505,162.07,161.98,2.8]
[1754236187707,3.26,162.02,161.98,2.8]
[1754236187911,3.26,162.01,161.98,2.8]
[1754236188105,3.26,162.01,161.97,121.29015505]
[1754236188106,6.1714,162.05,162.0,6.173]
[1754236188310,3.26,162.04,162.0,2.8]
[1754236188506,6.1714,162.05,162.0,2.8]
[1754236188707,3.26,162.03,162.01,2.8]
[1754236189218,6.1709,162.06,162.02,6.1722]
[1754236189401,3.26,162.04,162.03,2.8]
[1754236191210,3.26,162.03,162.02,2.8]
[1754236191712,6.21015505,162.1,162.02,2.8]
[1754236192111,3.26,162.04,162.02,2.8]
[1754236192305,3.26,162.04,162.03,2.8]
[1754236192504,3.26,162.11,162.03,9.01015505]
[1754236192710,6.1698,162.09,162.05,6.1708]
[1754236192908,3.26,162.07,162.05,8.9708]
[1754236193213,3.26,162.09,162.07,2.8]
[1754236193413,3.26,162.08,162.07,2.8]
[1754236194213,3.26,162.08,162.06,2.8]
[1754236194514,6.1697,162.09,162.06,2.8]
[1754236194707,3.26,162.07,162.06,2.8]
[1754236196012,3.26,162.07,162.05,121.21015505]
[1754236196214,3.26,162.07,162.05,130.18115505]
[1754236196414,3.26,162.07,162.05,124.01015505]
[1754236197615,3.26,162.07,162.05,121.21015505]
[1754236197816,3.26,162.07,162.06,2.8]
[1754236199519,3.26,162.17,162.07,2.8]